bitfinex/quotes_SOLUSD_20250811
["timestamp","ask_amount","ask_price","bid_price","bid_amount"]
[1754892398113,5.38909247,185.56,185.53,105.57351926]
[1754892398313,5.38909247,185.56,185.54,0.7]
[1754892398620,5.38909247,185.56,185.53,104.87351926]
[1754892398831,5.38909247,185.56,185.53,100.80583903]
[1754892399029,6.09909247,185.56,185.53,105.57351926]
[1754892399413,6.09909247,185.56,185.53,100.80583903]
[1754892400541,6.09909247,185.56,185.53,100.10583903]
[1754892401245,6.09909247,185.56,185.53,104.87351926]
[1754892401418,6.09909247,185.56,185.53,100.10583903]
[1754892401624,6.09909247,185.56,185.54,37.88]
[1754892401846,6.09909247,185.56,185.53,104.87351926]
[1754892402918,6.09909247,185.56,185.53,100.10583903]
[1754892403152,10.1567727,185.56,185.53,100.10583903]
[1754892403326,0.71,185.55,185.53,100.10583903]
[1754892403924,6.09909247,185.56,185.53,100.10583903]
[1754892404454,5.38909247,185.56,185.53,100.80583903]
[1754892404945,5.38909247,185.56,185.53,105.57351926]
[1754892405346,5.44888036,185.57,185.55,4.76768023]
[1754892405536,0.06,185.57,185.56,5.46768023]
[1754892406164,0.06,185.57,185.56,67.69351926]
[1754892406749,0.06,185.57,185.56,100.10583903]
[1754892406750,6.15880206,185.57,185.56,100.10583903]
[1754892407653,5.44880206,185.57,185.56,104.87351926]
[1754892408029,0.06,185.57,185.56,105.57351926]
[1754892408464,5.44880206,185.57,185.56,105.57351926]
[1754892409131,0.06,185.57,185.56,105.57351926]
[1754892409528,0.06,185.57,185.56,104.87351926]
[1754892409835,0.06,185.57,185.56,100.10583903]
[1754892410027,0.06,185.57,185.56,105.57351926]
[1754892410450,0.06,185.57,185.56,100.10583903]
[1754892410652,0.77,185.57,185.56,100.10583903]
[1754892410868,0.77,185.57,185.56,37.88]
[1754892411243,6.15880206,185.57,185.56,37.88]
[1754892411761,6.15880206,185.57,185.55,4.76768023]
[1754892411964,6.15880206,185.57,185.55,37.88]
[1754892414547,0.71,185.56,185.55,37.88]
[1754892414753,5.44880206,185.57,185.55,37.88]
[1754892414960,6.15880206,185.57,185.55,37.88]
[1754892415847,5.44880206,185.57,185.54,43.34768023]
[1754892416880,0.06,185.57,185.54,105.57351926]
[1754892418066,0.77,185.57,185.54,105.57351926]
[1754892418968,5.38909247,185.56,185.54,105.57351926]
[1754892420474,5.38909247,185.56,185.55,0.72]
[1754892420853,5.44882655,185.57,185.55,5.48768023]
[1754892421073,0.06,185.57,185.56,43.36768023]
[1754892421269,30.06,185.57,185.56,43.36768023]
[1754892421570,0.06,185.57,185.56,38.6]
[1754892421789,0.06,185.57,185.56,37.88]
[1754892423168,0.06,185.57,185.55,66.99351926]
[1754892423374,0.06,185.57,185.55,100.08583903]
[1754892423968,0.71,185.57,185.55,100.08583903]
[1754892425579,0.71,185.57,185.55,62.22583903]
[1754892425580,6.03909247,185.56,185.55,62.22583903]
[1754892427185,24.27950389,185.56,185.52,62.25583903]
[1754892427476,24.27950389,185.56,185.52,100.83583903]
[1754892428264,5.38967338,185.54,185.52,100.83583903]
[1754892429386,5.38938291,185.55,185.52,100.83583903]
[1754892430479,5.38938291,185.55,185.52,154.65355727]
[1754892430991,5.38938291,185.55,185.52,149.88587704]
[1754892433360,6.03938291,185.55,185.52,149.88587704]
[1754892435064,6.03938291,185.55,185.52,149.16587704]
[1754892436366,5.38938291,185.55,185.52,154.65355727]
[1754892436986,5.38938291,185.55,185.52,153.93355727]
[1754892437190,5.38938291,185.55,185.53,0.72]
[1754892438403,18.94996705,185.57,185.54,4.76768023]
[1754892438404,5.38909247,185.56,185.54,4.76768023]
[1754892438573,5.38909247,185.56,185.54,42.62768023]
[1754892438769,5.38909247,185.56,185.55,0.72]
[1754892438965,5.38909247,185.56,185.54,43.34768023]
[1754892439600,5.44880206,185.57,185.54,43.34768023]
[1754892440487,5.44880206,185.57,185.55,4.76768023]
[1754892440687,5.44880206,185.57,185.55,5.48768023]
[1754892441689,0.06,185.57,185.55,5.48768023]
[1754892442073,0.06,185.57,185.55,0.72]
[1754892442277,0.06,185.57,185.55,5.48768023]
[1754892442873,0.06,185.57,185.56,43.34768023]
[1754892443092,0.06,185.57,185.56,38.58]
[1754892443295,0.06,185.57,185.56,42.62768023]
[1754892443592,5.38909247,185.56,185.54,37.86]
[1754892443775,0.65,185.55,185.54,37.86]
[1754892443975,0.65,185.55,185.52,49.08003801]
[1754892444177,0.65,185.55,185.53,37.86]
[1754892445574,5.38967338,185.54,185.53,37.86]
[1754892445885,5.38967338,185.54,185.52,86.94003801]
[1754892446082,0.65,185.53,185.52,86.94003801]
[1754892448594,6.03996388,185.53,185.52,86.94003801]
[1754892448798,5.38996388,185.53,185.52,86.94003801]
[1754892449302,5.38996388,185.53,185.52,149.16587704]
[1754892449696,5.38996388,185.53,185.52,153.93355727]
[1754892449896,5.38996388,185.53,185.52,154.59355727]
[1754892450698,5.38938291,185.55,185.52,154.59355727]
[1754892450992,13.53227068,185.57,185.54,4.76768023]
[1754892450993,0.06,185.57,185.54,4.76768023]
[1754892451194,0.06,185.57,185.56,4.76768023]
[1754892451405,5.44883942,185.57,185.56,4.76768023]
[1754892451698,5.44883942,185.57,185.56,5.42768023]
[1754892453298,0.06,185.57,185.56,5.42768023]
[1754892456310,0.06,185.57,185.56,0.66]
[1754892456518,0.06,185.57,185.56,5.42768023]
[1754892458300,0.06,185.57,185.56,0.66]
[1754892458518,0.06,185.57,185.56,5.42768023]
[1754892459797,0.06,185.57,185.56,4.76768023]
[1754892460199,0.76,185.57,185.55,37.86]
[1754892460509,0.06,185.57,185.55,42.62768023]
[1754892461313,0.06,185.57,185.55,104.85351926]
[1754892462616,0.76,185.57,185.55,100.08583903]
[1754892463011,0.76,185.57,185.55,62.22583903]
[1754892463998,0.7,185.56,185.55,62.22583903]
[1754892466002,6.08909247,185.56,185.55,62.22583903]
[1754892466396,35.38909247,185.56,185.55,62.22583903]
[1754892467234,35.38909247,185.56,185.53,104.83351926]
[1754892467518,35.38909247,185.56,185.53,105.49351926]
[1754892467898,5.38909247,185.56,185.53,105.49351926]
[1754892468405,5.38909247,185.56,185.54,0.66]
[1754892468596,5.44880206,185.57,185.54,0.66]
[1754892468800,6.14880206,185.57,185.54,0.66]
[1754892469617,6.14880206,185.57,185.53,104.83351926]
[1754892469918,0.7,185.56,185.53,100.06583903]
[1754892470130,23.68848746,185.57,185.53,100.06583903]
[1754892470427,0.7,185.55,185.53,100.06583903]
[1754892471110,5.38967338,185.54,185.53,100.06583903]
[1754892472896,6.08967338,185.54,185.53,37.84]
[1754892473301,5.38967338,185.54,185.53,37.84]
[1754892473698,10.85735361,185.54,185.52,111.30587704]
[1754892473895,0.7,185.53,185.52,149.12587704]
[1754892474096,0.7,185.53,185.52,86.90003801]
[1754892474516,6.08996388,185.53,185.52,86.90003801]
[1754892475231,5.44913338,185.56,185.52,92.32771824]
[1754892475450,10.91681361,185.56,185.52,87.56003801]
[1754892475596,0.7,185.55,185.52,87.56003801]
[1754892475800,5.46768023,185.55,185.52,86.90003801]
[1754892476302,5.46768023,185.54,185.52,86.90003801]
[1754892476604,5.38996388,185.53,185.52,86.90003801]
[1754892477727,6.08996388,185.53,185.52,86.90003801]
[1754892477935,10.85764411,185.53,185.52,49.08003801]
[1754892478315,5.38996388,185.53,185.52,49.08003801]
[1754892479016,35.38996388,185.53,185.52,49.08003801]
[1754892482629,35.38996388,185.53,185.52,49.78003801]
[1754892482936,5.38996388,185.53,185.52,49.78003801]
[1754892484326,10.15706314,185.55,185.52,49.08003801]
[1754892484531,4.76768023,185.53,185.52,86.90003801]
[1754892484734,5.47768023,185.53,185.52,86.90003801]
[1754892484921,5.47768023,185.53,185.52,49.08003801]
[1754892485119,0.71,185.53,185.52,49.08003801]
[1754892485326,4.76768023,185.54,185.52,49.08003801]
[1754892485526,5.47768023,185.54,185.52,49.08003801]
[1754892486433,5.38996388,185.53,185.52,49.08003801]
[1754892489635,35.38996388,185.53,185.52,49.08003801]
[1754892492141,36.09996388,185.53,185.52,49.08003801]
[1754892492644,35.38996388,185.53,185.52,49.08003801]
[1754892493542,36.09996388,185.53,185.52,49.08003801]
[1754892493729,39.14502842,185.53,185.52,49.08003801]
[1754892494229,36.09996388,185.53,185.52,49.08003801]
[1754892494829,39.14502842,185.53,185.52,49.08003801]
[1754892495426,39.20502842,185.53,185.52,49.08003801]
[1754892501548,38.49502842,185.53,185.52,49.08003801]
[1754892503139,35.44996388,185.53,185.52,49.08003801]
[1754892503340,38.49502842,185.53,185.52,49.08003801]
[1754892504623,39.20502842,185.53,185.52,49.08003801]
[1754892505041,36.15996388,185.53,185.52,49.08003801]
[1754892505244,39.20502842,185.53,185.52,49.08003801]
[1754892505557,38.49502842,185.53,185.52,49.08003801]
[1754892505951,39.20502842,185.53,185.52,49.08003801]
[1754892506582,92.11124399,185.53,185.52,17.98551679]
[1754892506778,26.0,185.5,185.46,1e-08]
[1754892507074,3.04506454,185.47,185.46,1e-08]
[1754892507449,6.55323212,185.47,185.46,1e-08]
[1754892507748,5.39199827,185.46,185.42,0.03]
[1754892507946,3.04506454,185.43,185.42,0.03]
[1754892508151,4.76425176,185.43,185.42,0.03]
[1754892508346,4.76425176,185.43,185.42,1e-08]
[1754892508347,30.76425176,185.43,185.42,1e-08]
[1754892508656,48.93005844,185.43,185.42,1e-08]
[1754892509052,86.13005844,185.43,185.42,1e-08]
[1754892509366,85.40076876,185.43,185.42,1e-08]
[1754892509556,86.75012391,185.43,185.42,1e-08]
[1754892509867,92.14299453,185.43,185.42,1e-08]
[1754892510068,122.14299453,185.43,185.42,1e-08]
[1754892511174,135.62517109,185.43,185.39,1e-08]
[1754892511352,35.52850352,185.4,185.37,0.03]
[1754892511684,4.76425176,185.38,185.37,0.03]
[1754892511976,10.15857692,185.38,185.37,1e-08]
[1754892512549,10.15857692,185.38,185.36,1e-08]
[1754892512550,40.77857692,185.38,185.36,1e-08]
[1754892512788,26.0,185.35,185.34,1e-08]
[1754892513088,4.76425176,185.35,185.34,1e-08]
[1754892513555,73.20425176,185.35,185.34,1e-08]
[1754892513759,77.97945003,185.35,185.34,1e-08]
[1754892515169,77.97945003,185.35,185.34,0.66000001]
[1754892515971,77.97945003,185.35,185.34,1e-08]
[1754892516686,89.41958927,185.35,185.34,1e-08]
[1754892516851,94.18384103,185.35,185.34,1e-08]
[1754892519490,94.18384103,185.35,185.34,0.66000001]
[1754892519798,35.39519827,185.35,185.34,0.66000001]
[1754892519978,30.0,185.35,185.34,5.42425177]
[1754892520985,5.39497538,185.36,185.34,5.42425177]
[1754892521187,5.45432516,185.38,185.35,5.42425176]
[1754892521362,5.45432516,185.38,185.36,0.66]
[1754892521765,0.06,185.38,185.37,4.76425176]
[1754892521992,30.06,185.38,185.37,5.42425176]
[1754892522363,0.06,185.38,185.37,5.42425176]
[1754892524193,0.06,185.38,185.37,0.66]
[1754892524396,0.06,185.38,185.37,5.42425176]
[1754892525970,0.06,185.38,185.37,0.66]
[1754892526175,0.06,185.38,185.37,5.42425176]
[1754892526476,0.06,185.38,185.37,67.65009079]
[1754892528369,0.06,185.38,185.37,88.15092253]
[1754892528575,0.06,185.38,185.37,125.97092253]
[1754892528776,0.06,185.38,185.37,120.57630636]
[1754892530198,0.06,185.38,185.37,125.97092253]
[1754892530568,0.06,185.38,185.37,151.97092253]
[1754892532172,0.06,185.4,185.39,15.10621557]
[1754892532400,0.06,185.4,185.39,82.03630636]
[1754892532682,0.06,185.4,185.39,82.69630636]
[1754892533496,0.06,185.4,185.39,88.09034055]
[1754892533702,0.06,185.4,185.39,82.69630636]
[1754892534612,0.06,185.4,185.39,88.09034055]
[1754892536200,0.06,185.4,185.39,125.91034055]
[1754892536712,0.06,185.4,185.39,110.80412498]
[1754892538000,0.06,185.4,185.39,120.51630636]
[1754892538500,0.06,185.4,185.39,82.69630636]
[1754892538703,0.06,185.4,185.39,120.51630636]
[1754892539683,0.06,185.4,185.39,82.69630636]
[1754892539886,0.06,185.4,185.39,120.51630636]
[1754892540403,0.06,185.4,185.39,82.69630636]
[1754892540600,0.06,185.4,185.39,115.7520546]
[1754892540805,0.06,185.4,185.39,104.75009079]
[1754892540990,0.06,185.4,185.39,105.43009079]
[1754892541188,0.06,185.4,185.39,104.75009079]
[1754892541919,0.06,185.4,185.39,99.96583903]
[1754892542509,0.68,185.4,185.39,99.96583903]
[1754892542686,0.68,185.4,185.37,4.76425176]
[1754892542880,0.68,185.4,185.38,37.8]
[1754892543412,5.39403419,185.39,185.38,37.8]
[1754892543910,5.39403419,185.39,185.37,42.56425176]
[1754892545298,0.06,185.4,185.38,0.68]
[1754892545506,0.06,185.4,185.39,37.8]
[1754892545507,6.07376766,185.4,185.39,37.8]
[1754892545715,0.62,185.39,185.38,37.8]
[1754892545891,0.62,185.39,185.37,37.8]
[1754892546431,5.45376766,185.4,185.35,4.76425176]
[1754892546432,0.62,185.38,185.35,4.76425176]
[1754892546721,0.62,185.37,185.35,37.8]
[1754892547429,5.38425176,185.38,185.35,37.8]
[1754892547723,6.01461617,185.37,185.35,37.8]
[1754892547891,5.38425176,185.36,185.34,1e-08]
[1754892548398,10.15886793,185.37,185.34,1e-08]
[1754892548921,0.62,185.36,185.34,1e-08]
[1754892549300,10.77886793,185.37,185.34,1e-08]
[1754892550209,5.39461617,185.37,185.34,1e-08]
[1754892550534,10.15886793,185.37,185.34,1e-08]
[1754892550704,0.62,185.36,185.34,1e-08]
[1754892550899,10.15886793,185.37,185.34,1e-08]
[1754892551103,10.77886793,185.37,185.34,1e-08]
[1754892552904,0.62,185.36,185.34,1e-08]
[1754892553410,4.76425176,185.36,185.34,1e-08]
[1754892553726,0.62,185.35,185.34,1e-08]
[1754892554023,5.39519827,185.35,185.34,1e-08]
[1754892554212,6.01519827,185.35,185.34,1e-08]
[1754892554413,5.39519827,185.35,185.34,1e-08]
[1754892557117,5.39519827,185.35,185.34,0.68000001]
[1754892557317,5.39461617,185.37,185.34,5.44425177]
[1754892557721,5.39461617,185.37,185.35,0.68]
[1754892557903,5.39461617,185.37,185.35,4.76425176]
[1754892558108,5.39403419,185.39,185.36,0.68]
[1754892558412,6.01403419,185.39,185.35,4.76425176]
[1754892558629,6.01403419,185.39,185.35,5.44425176]
[1754892558941,0.62,185.38,185.34,4.76425177]
[1754892559141,0.62,185.37,185.34,1e-08]
[1754892559325,5.38425176,185.37,185.34,1e-08]
[1754892559521,0.62,185.37,185.34,1e-08]
[1754892559725,4.76425176,185.38,185.34,1e-08]
[1754892560118,4.76425176,185.38,185.35,0.68]
[1754892560629,5.39461617,185.37,185.35,0.68]
[1754892561426,5.39461617,185.37,185.36,0.68]
[1754892562433,5.39403419,185.39,185.35,4.79425176]
[1754892562636,6.01403419,185.39,185.35,5.47425176]
[1754892564515,6.01403419,185.39,185.35,0.71]
[1754892564919,0.62,185.38,185.35,0.03]
[1754892565827,10.15915896,185.36,185.35,0.03]
[1754892566237,6.0149072,185.36,185.35,0.03]
[1754892568128,10.77915896,185.36,185.35,0.03]
[1754892568331,40.77915896,185.36,185.35,0.03]
[1754892568748,42.12900242,185.36,185.35,1e-08]
[1754892569743,26.0,185.33,185.3,0.03]
[1754892570048,10.16061461,185.31,185.3,0.03]
[1754892570434,10.78061461,185.31,185.3,0.03]
[1754892571035,12.94166661,185.31,185.3,1e-08]
[1754892571855,42.94166661,185.31,185.3,1e-08]
[1754892572154,35.39636285,185.31,185.3,1e-08]
[1754892572351,40.16061461,185.31,185.3,1e-08]
[1754892572656,35.39636285,185.31,185.3,1e-08]
[1754892574752,35.39636285,185.31,185.3,0.69000001]
[1754892575756,30.0,185.31,185.3,0.69000001]
[1754892575959,5.3958633,185.33,185.3,5.45425177]
[1754892576263,5.3958633,185.33,185.31,5.45425176]
[1754892576453,2.160936,185.32,185.31,4.76425176]
[1754892576671,5.3958633,185.33,185.31,4.76425176]
[1754892576956,5.3958633,185.33,185.32,4.76425176]
[1754892577174,35.3958633,185.33,185.32,5.45425176]
[1754892577562,30.0,185.33,185.32,5.45425176]
[1754892577868,35.39578049,185.33,185.32,5.45425176]
[1754892578043,30.0,185.33,185.32,5.45425176]
[1754892578548,5.39542794,185.35,185.32,5.45425176]
[1754892578743,5.39432516,185.38,185.34,4.76425176]
[1754892578949,5.39432516,185.38,185.36,4.76425176]
[1754892579152,5.39432516,185.38,185.37,4.76425176]
[1754892579359,5.39432516,185.38,185.37,5.45425176]
[1754892579560,5.39410926,185.39,185.37,5.45425176]
[1754892579738,5.39410926,185.39,185.38,5.45425176]
[1754892579940,35.39410926,185.39,185.38,5.45425176]
[1754892580640,5.39410926,185.39,185.38,4.76425176]
[1754892580973,6.01410926,185.39,185.37,4.76425176]
[1754892581140,6.01410926,185.39,185.36,4.76425176]
[1754892581664,5.39410926,185.39,185.36,4.76425176]
[1754892581968,5.45382306,185.4,185.37,5.45425176]
[1754892582260,0.06,185.4,185.37,4.76425176]
[1754892582437,0.06,185.4,185.38,5.45425176]
[1754892582932,0.06,185.4,185.39,5.45425176]
[1754892583141,30.06,185.4,185.39,5.45425176]
[1754892583556,30.06,185.4,185.39,0.69]
[1754892583858,30.06,185.4,185.39,5.45425176]
[1754892584262,35.45374325,185.4,185.39,5.45425176]
[1754892584736,5.45374325,185.4,185.39,5.45425176]
[1754892585640,0.06,185.4,185.39,5.45425176]
[1754892586644,5.45374325,185.4,185.39,0.69]
[1754892587252,5.45374325,185.4,185.38,4.76425176]
[1754892587559,5.45374325,185.4,185.38,5.45425176]
[1754892587753,5.45374325,185.4,185.36,0.69]
[1754892587953,5.45374325,185.4,185.38,4.76425176]
[1754892588763,0.62,185.39,185.33,77.9620546]
[1754892588940,0.62,185.39,185.35,4.76425176]
[1754892589444,0.62,185.39,185.35,5.45425176]
[1754892589759,5.39432516,185.38,185.35,5.45425176]
[1754892591749,5.39432516,185.38,185.36,5.45425176]
[1754892591953,18.93810139,185.4,185.36,5.45425176]
[1754892592151,1.3495399,185.39,185.36,5.45425176]
[1754892592866,5.39432516,185.38,185.36,5.45425176]
[1754892594269,18.93810139,185.4,185.37,4.76425176]
[1754892594567,19.55810139,185.4,185.37,4.76425176]
[1754892595069,18.93810139,185.4,185.37,4.76425176]
[1754892595859,18.93810139,185.4,185.39,4.76425176]
[1754892595860,5.45374325,185.4,185.39,4.76425176]
[1754892596179,5.45374325,185.4,185.39,5.45425176]
[1754892596180,6.80322098,185.4,185.39,5.45425176]
[1754892597442,5.45374325,185.4,185.39,5.45425176]
[1754892597669,0.06,185.4,185.39,5.45425176]
[1754892599649,0.06,185.4,185.39,0.69]
[1754892599851,0.06,185.4,185.39,5.45425176]
[1754892600571,0.06,185.41,185.4,41.10621557]
[1754892600780,0.06,185.44,185.41,4.76425176]
[1754892600976,0.06,185.44,185.41,15.10621557]
[1754892601156,0.06,185.44,185.43,4.76425176]
[1754892601358,0.06,185.44,185.43,20.40975439]
[1754892601553,30.06,185.46,185.45,41.10621557]
[1754892601858,0.06,185.46,185.45,79.59621557]
[1754892602068,0.06,185.46,185.45,84.36046733]
[1754892603661,0.04,185.46,185.45,84.36046733]
[1754892606780,0.04,185.46,185.45,84.89969623]
[1754892606982,0.1,185.52,185.47,24.63471909]
[1754892607182,0.1,185.52,185.51,4.76425176]
[1754892607360,0.1,185.52,185.51,104.71009079]
[1754892607684,0.1,185.52,185.51,105.40009079]
[1754892610168,5.49025442,185.52,185.51,105.40009079]
[1754892610672,0.1,185.52,185.51,105.40009079]
[1754892611379,5.49025442,185.52,185.51,105.40009079]
[1754892615564,5.49025442,185.52,185.51,104.71009079]
[1754892616399,5.49025442,185.52,185.51,105.40009079]
[1754892617775,5.49025442,185.52,185.51,104.71009079]
[1754892618162,5.49025442,185.52,185.51,105.40009079]
[1754892619089,5.49025442,185.52,185.51,104.71009079]
[1754892619390,5.49025442,185.52,185.51,99.94583903]
[1754892619593,5.49025442,185.52,185.51,99.90583903]
[1754892619594,6.17025442,185.52,185.51,99.90583903]
[1754892619777,5.49025442,185.52,185.51,66.89009079]
[1754892620975,5.49025442,185.52,185.51,67.58009079]
[1754892621492,5.49025442,185.52,185.51,66.89009079]
[1754892621888,5.49025442,185.52,185.51,105.42009079]
[1754892622092,5.49025442,185.52,185.51,104.73009079]
[1754892622291,19.64589047,185.52,185.47,4.76425176]
[1754892622492,19.64589047,185.52,185.49,4.76425176]
[1754892622699,19.64589047,185.52,185.5,37.84]
[1754892622992,18.96589047,185.52,185.5,43.29425176]
[1754892623171,5.49025442,185.52,185.51,5.45425176]
[1754892623495,5.49025442,185.52,185.5,132.89425176]
[1754892624371,5.49025442,185.52,185.51,5.45425176]
[1754892625369,0.1,185.52,185.51,5.45425176]
[1754892626396,0.1,185.52,185.51,0.69]
[1754892626569,0.1,185.52,185.51,5.45425176]
[1754892626895,0.1,185.52,185.51,95.05425176]
[1754892628077,0.1,185.52,185.51,132.87425176]
[1754892628277,0.1,185.52,185.51,127.42]
[1754892628278,5.49025442,185.52,185.51,127.42]
[1754892628496,5.49025442,185.52,185.51,132.18425176]
[1754892629592,5.49025442,185.52,185.51,132.87425176]
[1754892630184,5.49025442,185.52,185.51,94.36425176]
[1754892630393,0.1,185.52,185.51,132.18425176]
[1754892630571,0.1,185.52,185.51,94.36425176]
[1754892630888,0.1,185.52,185.51,132.16425176]
[1754892631466,0.1,185.52,185.51,132.18425176]
[1754892631697,0.1,185.52,185.51,132.90425176]
[1754892632582,0.1,185.52,185.51,132.88425176]
[1754892632583,5.49025442,185.52,185.51,132.88425176]
[1754892632981,5.49025442,185.52,185.51,89.6]
[1754892633294,6.17025442,185.52,185.51,127.44]
[1754892635394,6.17025442,185.52,185.51,89.6]
[1754892635801,6.17025442,185.52,185.48,0.03]
[1754892635802,12.28314157,185.52,185.48,0.03]
[1754892636101,12.28314157,185.52,185.46,0.03]
[1754892636102,4.76425176,185.49,185.46,0.03]
[1754892636274,4.76425176,185.47,185.46,0.03]
[1754892636480,6.1133261,185.47,185.46,0.03]
[1754892636796,6.7933261,185.47,185.46,0.03]
[1754892637297,5.44425176,185.47,185.46,0.03]
[1754892637502,6.7933266,185.47,185.46,0.03]
[1754892638002,12.18503415,185.47,185.46,0.03]
[1754892638208,42.18503415,185.47,185.46,0.03]
[1754892638519,42.18503415,185.47,185.46,1e-08]
[1754892639883,37.42078239,185.47,185.46,1e-08]
[1754892640094,42.18503415,185.47,185.46,1e-08]
[1754892640298,37.42078239,185.47,185.46,1e-08]
[1754892640500,42.18503415,185.47,185.46,1e-08]
[1754892642776,80.02503415,185.47,185.46,1e-08]
[1754892643895,78.67595931,185.47,185.46,1e-08]
[1754892644095,80.02517302,185.47,185.46,1e-08]
[1754892647110,74.58092126,185.47,185.46,1e-08]
[1754892647288,36.74092126,185.47,185.46,0.72000001]
[1754892647820,36.74092126,185.47,185.46,5.48425177]
[1754892648121,35.39170755,185.47,185.46,5.48425177]
[1754892648298,5.39170755,185.47,185.46,5.48425177]
[1754892650520,5.3911262,185.49,185.46,5.48425177]
[1754892650719,5.3911262,185.49,185.47,5.48425176]
[1754892650919,5.3911262,185.49,185.48,0.72]
[1754892651498,5.3911262,185.49,185.48,5.48425176]
[1754892652494,5.39054498,185.51,185.48,5.48425176]
[1754892652707,5.39054498,185.51,185.49,0.72]
[1754892652908,5.39054498,185.51,185.5,0.72]
[1754892653222,35.39054498,185.51,185.5,0.72]
[1754892654915,35.39054498,185.51,185.5,5.48425176]
[1754892655998,35.39054498,185.51,185.5,0.72]
[1754892656194,35.39054498,185.51,185.49,5.48425176]
[1754892656402,5.39054498,185.51,185.49,5.48425176]
[1754892656808,5.39054498,185.51,185.5,0.72]
[1754892658117,5.39054498,185.51,185.5,5.48425176]
[1754892660625,5.39054498,185.51,185.49,4.76425176]
[1754892660922,5.39054498,185.51,185.49,5.45425176]
[1754892661102,5.49031828,185.52,185.5,5.45425176]
[1754892661416,6.2629229,185.51,185.47,0.69]
[1754892661607,23.88020609,185.52,185.48,0.69]
[1754892661916,19.11595433,185.52,185.48,5.45425176]
[1754892662122,1.34879631,185.51,185.48,5.45425176]
[1754892662297,1.34879631,185.51,185.48,0.69]
[1754892662718,1.34879631,185.51,185.47,4.76425176]
[1754892663023,6.26304807,185.51,185.47,0.69]
[1754892663205,4.91425176,185.51,185.47,0.69]
[1754892663606,30.0,185.5,185.47,0.69]
[1754892663795,5.3911262,185.49,185.47,0.69]
[1754892663992,5.5411262,185.49,185.46,94.36425177]
[1754892664196,5.5411262,185.49,185.46,1e-08]
[1754892665228,5.3911262,185.49,185.46,1e-08]
[1754892665529,4.91425176,185.48,185.46,1e-08]
[1754892665901,10.15595931,185.47,185.46,1e-08]
[1754892666205,5.39170755,185.47,185.46,0.69000001]
[1754892666812,5.39170755,185.47,185.46,1e-08]
[1754892667413,35.39170755,185.47,185.46,1e-08]
[1754892668847,40.15595931,185.47,185.46,1e-08]
[1754892669127,40.87595931,185.47,185.46,1e-08]
[1754892669315,42.22495891,185.47,185.44,1e-08]
[1754892669512,10.15654078,185.45,185.44,1e-08]
[1754892669718,75.28554038,185.45,185.44,1e-08]
[1754892670117,106.00554038,185.45,185.44,1e-08]
[1754892674627,105.28554038,185.45,185.44,1e-08]
[1754892675517,105.40554038,185.45,185.44,1e-08]
[1754892677729,104.05654078,185.45,185.44,1e-08]
[1754892678036,105.40590592,185.45,185.44,1e-08]
[1754892679733,105.28590592,185.45,185.44,1e-08]
[1754892680430,74.54165416,185.45,185.44,1e-08]
[1754892680611,36.74165416,185.45,185.44,0.69000001]
[1754892681821,35.39228902,185.45,185.44,0.69000001]
[1754892688146,5.39199827,185.46,185.44,0.69000001]
[1754892688544,5.39199827,185.46,185.44,1e-08]
[1754892689742,1.34918255,185.45,185.44,1e-08]
[1754892689946,31.34918255,185.45,185.44,1e-08]
[1754892690130,36.74147157,185.45,185.44,1e-08]
[1754892690329,35.39228902,185.45,185.44,1e-08]
[1754892691462,40.15654078,185.45,185.44,1e-08]
[1754892691633,41.50580988,185.45,185.44,1e-08]
[1754892693363,36.74155812,185.45,185.44,1e-08]
[1754892693533,35.39228902,185.45,185.44,0.67000001]
[1754892694828,5.39228902,185.45,185.44,0.67000001]
[1754892695028,5.39228902,185.45,185.44,1e-08]
[1754892695225,10.15654078,185.45,185.44,1e-08]
[1754892695436,11.50575089,185.45,185.44,1e-08]
[1754892696228,6.74149913,185.45,185.44,1e-08]
[1754892696451,36.74149913,185.45,185.44,1e-08]
[1754892696843,41.50575089,185.45,185.44,1e-08]
[1754892697040,36.74149913,185.45,185.44,0.67000001]
[1754892697249,35.39228902,185.45,185.44,0.67000001]
[1754892697847,30.0,185.45,185.44,5.43425177]
[1754892698162,35.39228902,185.45,185.44,0.67000001]